Cogmind - Beta 16 @@@ ROGUE MODE // 2025.11.04 @ 06:01:20 Player: Demo Result: Destroyed by G-67 Veteran with Plasma Rifle Performance ------------- Evolutions (6) 3000 Regions Visited (18) 3600 Robots Destroyed (259) 1295 Value Destroyed (12463) 12463 Prototype IDs (217) 4340 Alien Tech Used (0) 0 Bonus (10529) 10529 TOTAL SCORE: 35227 Bonus ------- Pacifist 834 High Alert Combat Kills 3018 Follower Combat Kills 889 Met Data Miner 300 Used Data Conduit 3000 Met Warlord at Base 500 MAIN.C Attacked Warlord 500 Warlord Defense Kills 610 A7 Reached Mainframe 300 Met R17 at Cetus 500 Pursued by Intercept 500 Friendly Fire -422 Cogmind --------- Core Integrity 0/1150 Matter 149/300 Energy 10/100 System Corruption 43% Temperature Cool (0) Movement Core (300) Ox5 Location -4/Armory Parts ------- > --- POWER (2) -------- (None) > --- PROPULSION (4) --- Enhanced Biometal Leg Enhanced Biometal Leg > --- UTILITY (9) ------ Advanced Remote Force Field > --- WEAPON (4) ------- (None) > --- INVENTORY (5) ---- (None) Peak State ------------ > --- POWER ------------ Quantum Reactor Light Quantum Reactor > --- PROPULSION ------- Enhanced Biometal Leg Centrium Leg Centrium Leg Centrium Leg > --- UTILITY ---------- Improved Cooling System Advanced Cooling System Advanced Cooling System Advanced Cooling System Large Storage Unit Experimental Core Analyzer Centrium Medium Armor Plating Centrium Medium Armor Plating Medium Regenerative Plating > --- WEAPON ----------- Dispersion Rifle Advanced Variable Charge Gun Enhanced Quantum Rifle Enhanced Nova Cannon > --- INVENTORY -------- Light Quantum Reactor Light Quantum Reactor Advanced VSS Leg Enhanced Biometal Leg Enhanced Biometal Leg Compact Wheel Improved Energy Well Experimental Matter Compressor Makeshift Salvage Targeting Computer Improved Armor Integrity Analyzer Experimental Phase Shifter Thermal Barrier Advanced Remote Force Field Tesla Rifle Precision Rocket Launcher [Rating: 156] Favorites ----------- Power Cooled Deuterium Engine Engine Cooled Deuterium Engine Power Core Light Neutrino Core Reactor Antimatter Reactor Propulsion Compact Wheel Treads Light Treads Leg Enhanced Biometal Leg Wheel Compact Wheel Utility Improved Cooling System Device Improved Cooling System Storage Large Storage Unit Processor Experimental Core Analyzer Protection Centrium Medium Armor Plating Weapon Cooled Pulse Rifle Energy Gun Cooled Pulse Rifle Energy Cannon Heavy Plasma Cannon Ballistic Gun Gauss Rifle Launcher Proton Missile Launcher Build | -11 -10 -9 -8 -7 -7 -7 -7 -6 -6 -6 -6 -5 -5 -5 -5 -4 -4 -4 ------- Run | Yrd Mat Mat Mat Fac Low Low Dat Pro Fac Ext Cet Fac Upp Upp War Pro Fac Arm Slots Evolved 12 | . . 2 2 2 . . . . 2 . . 2 . . . . 2 . Power 1 | . . 1 . . . . . . . . . . . . . . . . Propulsion 2 | . . . . . . . . . . . . . . . . . 2 . Utility 7 | . . 1 2 1 . . . . 1 . . 2 . . . . . . Weapon 2 | . . . . 1 . . . . 1 . . . . . . . . . Parts Attached 137 | 2 . . 5 24 . 4 7 . 20 8 9 6 4 1 6 1 14 26 Power 24 | . . . . 6 . . 2 . 4 2 . . 1 . 1 . . 8 Engine 8 | . . . . 4 . . . . 2 2 . . . . . . . . Core 5 | . . . . 2 . . . . 1 . . . 1 . . . . 1 Reactor 11 | . . . . . . . 2 . 1 . . . . . 1 . . 7 Propulsion 32 | 2 . . . 5 . 1 . . 7 1 1 1 . . . . 9 5 Treads 3 | 2 . . . 1 . . . . . . . . . . . . . . Leg 9 | . . . . . . . . . . . . . . . . . 4 5 Wheel 20 | . . . . 4 . 1 . . 7 1 1 1 . . . . 5 . Hover . | . . . . . . . . . . . . . . . . . . . Flight . | . . . . . . . . . . . . . . . . . . . Utility 44 | . . . 1 9 . 3 2 . 3 5 5 4 . . 4 . 1 7 Device 21 | . . . . 8 . 1 1 . 1 3 1 1 . . 2 . 1 2 Storage 4 | . . . . . . 1 . . 1 1 . . . . . . . 1 Processor 4 | . . . 1 . . . . . . . . 1 . . . . . 2 Hackware . | . . . . . . . . . . . . . . . . . . . Protection 15 | . . . . 1 . 1 1 . 1 1 4 2 . . 2 . . 2 Artifact . | . . . . . . . . . . . . . . . . . . . Weapon 37 | . . . 4 4 . . 3 . 6 . 3 1 3 1 1 1 4 6 Energy Gun 29 | . . . 4 4 . . 2 . 5 . 3 1 3 . . 1 4 2 Energy Cannon 3 | . . . . . . . . . . . . . . . 1 . . 2 Ballistic Gun 1 | . . . . . . . . . . . . . . 1 . . . . Ballistic Cannon . | . . . . . . . . . . . . . . . . . . . Launcher 4 | . . . . . . . 1 . 1 . . . . . . . . 2 Special Weapon . | . . . . . . . . . . . . . . . . . . . Impact Weapon . | . . . . . . . . . . . . . . . . . . . Slashing Weapon . | . . . . . . . . . . . . . . . . . . . Piercing Weapon . | . . . . . . . . . . . . . . . . . . . Special Melee Weapon . | . . . . . . . . . . . . . . . . . . . Unidentified Prototypes 5 | . . . 2 2 . . . . . . 1 . . . . . . . Corrupted Parts 8 | . . . . . . . 2 . 1 . 1 . . . 1 . . 3 System Corruption 56 | . . . . . . . 12 . 3 . 1 . . . 11 . . 29 Parts Lost 71 | . . . . 3 1 . 4 . 10 4 8 1 3 1 . . . 36 Power 12 | . . . . . . . 1 . 2 1 . . 1 . . . . 7 Propulsion 15 | . . . . 2 1 . 1 . 3 . 1 1 . . . . . 6 Utility 20 | . . . . 1 . . . . 1 3 2 . . . . . . 13 Weapon 24 | . . . . . . . 2 . 4 . 5 . 2 1 . . . 10 Highest Loss Streak 15 | . . . . 2 1 . 4 . 2 2 5 1 2 1 . . . 15 To Critical Strikes 1 | . . . . . . . . . . . 1 . . . . . . . Average Backups 11 | . . . 1 4 5 7 9 10 9 14 14 14 13 14 14 15 14 11 Power . | . . . . . . . . 1 . 1 1 1 . . . 1 1 1 Propulsion 1 | . . . . . . . . . 1 3 2 1 2 2 3 3 2 2 Utility 5 | . . . . 2 2 2 4 5 3 5 8 9 7 8 8 9 9 6 Weapon 2 | . . . 1 2 3 4 5 4 2 4 2 1 3 3 2 2 2 1 Tool/Special . | . . . . . . . . . . . . . . . . . . . Unused Backups 37 | . . . 1 3 . 2 1 . 9 1 1 5 . 2 7 1 . 4 Power 7 | . . . . . . . . . 2 . . 1 . . 2 1 . 1 Propulsion 5 | . . . . 1 . . . . 2 . . . . . 2 . . . Utility 18 | . . . . 2 . . 1 . 4 1 . 4 . 2 2 . . 2 Weapon 7 | . . . 1 . . 2 . . 1 . 1 . . . 1 . . 1 Tool/Special . | . . . . . . . . . . . . . . . . . . . Average Slot Usage (%) 90 | . 28 22 18 85 98 99 92 92 95 99 94 94 94 93 88 88 88 79 Engine 5 | . . . . 11 15 15 10 . 1 8 13 11 8 5 . . . . Reactor 4 | . . . . . . . 2 15 9 4 . . . . 4 5 5 6 Leg 1 | . . . . . . . . . . . . . . . . . 5 13 Wheel 10 | . . . . 8 13 14 11 7 10 13 12 11 11 11 11 11 14 5 Device 25 | . . . . 32 38 33 30 30 28 32 23 17 20 23 23 23 22 16 Storage 5 | . . . . . . 3 7 7 6 9 6 5 5 5 5 5 5 5 Protection 11 | . . . . 4 7 7 7 7 10 3 13 23 19 17 16 17 13 10 Energy Gun 19 | . . . . 20 23 23 19 15 24 25 22 23 22 17 17 15 15 12 Peak Build Rating 156 | 2 2 2 9 52 49 50 56 56 68 70 81 92 98 96 109 110 137 156 Average Rating 75 | 1 2 2 3 43 48 48 47 55 61 67 69 89 93 94 104 109 120 114 On Entrance 58 | . 2 2 2 7 49 48 49 56 55 68 68 81 92 96 95 109 110 115 Avg Prop Armor Cover (%) 20 | 41 41 41 40 13 . . . . . . . . . . . . 2 10 Naked Turns . | . . . . . . . . . . . . . . . . . . . Heaviest Build 133 | . . . 4 42 40 53 71 74 85 92 88 102 102 99 133 125 125 120 Greatest Support 120 | 3 3 3 3 26 26 26 26 10 32 32 32 32 26 26 26 26 64 120 Greatest Overweight (x) 27 | . . . 1 3 2 2 7 7 27 2 2 6 3 3 5 4 4 5 Average Overweight (x) 2 | . . . . 1 1 1 3 7 2 2 2 3 3 3 3 4 3 . Largest Inventory Capacity 15 | 5 5 5 5 5 5 10 10 10 15 15 15 15 15 15 15 15 15 15 Average Capacity 12 | 5 5 5 5 5 5 7 10 10 10 15 15 15 15 15 15 15 15 13 Most Carried 15 | . . . 5 5 5 10 10 10 15 15 15 15 15 15 15 15 15 15 Average Carried 11 | . . . 1 4 5 7 9 10 9 14 14 14 14 14 14 14 14 11 Final Capacity 15 | 5 5 5 5 5 5 10 10 10 15 15 15 15 15 15 15 15 15 5 Final Carried 15 | . . . 5 5 5 10 10 10 15 15 15 15 15 15 15 15 15 . Class Distribution -------------------- 65% | Scavenger-Tank 11% | Tank 10% | Gunner 6% | Scavenger-Gunner 6% | Mutant Dominant Class ---------------- Mutant | -10/Materials Mutant | -9/Materials Mutant | -8/Materials Gunner | -7/Factory Tank | -7/Lower Caves Tank | -7/Lower Caves Scavenger-Tank | -7/Data Miner Scavenger-Tank | -6/Proximity Caves Scavenger-Tank | -6/Factory Gunner | -6/Extension Scavenger-Tank | -6/Cetus Scavenger-Tank | -5/Factory Scavenger-Tank | -5/Upper Caves Scavenger-Tank | -5/Upper Caves Scavenger-Tank | -5/Warlord Scavenger-Tank | -4/Proximity Caves Scavenger-Tank | -4/Factory Scavenger-Tank | -4/Armory Resources | -11 -10 -9 -8 -7 -7 -7 -7 -6 -6 -6 -6 -5 -5 -5 -5 -4 -4 -4 ----------- Run | Yrd Mat Mat Mat Fac Low Low Dat Pro Fac Ext Cet Fac Upp Upp War Pro Fac Arm Matter Collected 3861 | 42 . 20 . 452 62 65 174 174 568 182 159 238 205 18 593 155 282 472 Remotely . | . . . . . . . . . . . . . . . . . . . Salvage Created 13667 | . . . . 609 41 217 440 887 4237 1641 430 612 349 63 382 319 1145 2295 Parts 527 | . . . . 25 . 7 24 32 165 53 8 30 17 7 14 7 35 103 Haulers Intercepted 9 | . . . . 2 . . . . 3 3 . 1 . . . . . . Recyclers Shooed 6 | . . . . 1 . . . . 2 1 . . . . . . 2 . Parts Field Recycled . | . . . . . . . . . . . . . . . . . . . Retrieved Matter . | . . . . . . . . . . . . . . . . . . . Parts Self-Destructed 33 | . . . . . . 5 . 15 . . . . 2 5 . 6 . . Prevented 41 | . . . . . . . . 15 . . . . 18 5 . 3 . . Parts Restored . | . . . . . . . . . . . . . . . . . . . Kills | -11 -10 -9 -8 -7 -7 -7 -7 -6 -6 -6 -6 -5 -5 -5 -5 -4 -4 -4 ------- Run | Yrd Mat Mat Mat Fac Low Low Dat Pro Fac Ext Cet Fac Upp Upp War Pro Fac Arm Combat Hostiles Destroyed 200 | . . . . 8 1 . 4 14 58 17 9 8 11 1 4 7 10 48 Guns 110 | . . . . 6 1 . . . 41 13 5 6 4 1 1 1 4 27 Cannons 11 | . . . . . . . . . . . . . . . 1 3 6 1 AOE 52 | . . . . . . . . 11 13 1 2 1 6 . . 3 . 15 Classes Destroyed 25 | . . . . 8 1 1 . 1 5 2 . . . . 3 1 1 2 Worker 11 | . . . . 4 . . . . 4 2 . 1 . . . . . . Builder 18 | . . . . 1 . . . . 13 1 . 1 . . . . 2 . Tunneler 4 | . . . . . . . . . . 2 . . . . . . 2 . Hauler 9 | . . . . 2 . . . . 3 3 . 1 . . . . . . Recycler 8 | . . . . 1 . . . . 4 1 . . . . . . 2 . Minesweeper 2 | . . . . . . 1 . 1 . . . . . . . . . . Mechanic 1 | . . . . . . . . . 1 . . . . . . . . . Operator 1 | . . . . . . . . . . . . . . . . . 1 . Drone 1 | . . . . . . . . . . . . . . . . 1 . . Watcher 3 | . . . . . . . . . 1 1 1 . . . . . . . Swarmer 25 | . . . . 2 . . . 3 4 . . . 1 . . . . 15 Saboteur 1 | . . . . . . . . . 1 . . . . . . . . . Grunt 77 | . . . . 3 . . . 6 33 9 2 1 2 . 1 6 4 10 Brawler 8 | . . . . . . . . 3 . 2 . . 3 . . . . . Duelist 15 | . . . . 1 . . . 2 6 2 . . 1 . . . . 3 Protector 2 | . . . . . . . . . 1 . . . . . 1 . . . Sentry 17 | . . . . 2 . . . . 4 3 . 1 1 . . . 4 2 Demolisher 3 | . . . . . . . . . . . . . . . 1 . . 2 Specialist 4 | . . . . . . . . . . . . . . . . . . 4 Hunter 21 | . . . . . 1 . . . 7 . . 4 2 1 . . . 6 Programmer 11 | . . . . . . . . . 2 . . 2 . . . . 2 5 Heavy 1 | . . . . . . . . . . . . . . . . . . 1 Behemoth 3 | . . . . . . . . . . 1 . . 1 . 1 . . . Cetus Guard 7 | . . . . . . . . . . . 7 . . . . . . . Enhanced Grunt 4 | . . . . . . . 4 . . . . . . . . . . . Executioner 1 | . . . . . . . . . . . . . . . 1 . . . Decomposer 2 | . . . . . . 2 . . . . . . . . . . . . Packrat 2 | . . . . . . 2 . . . . . . . . . . . . Mutant 1 | . . . . . . . . . . . . . . . 1 . . . Best Kill Streak 13 | . . . . 5 1 1 4 8 13 6 5 3 8 1 2 3 9 7 Combat Bots Only 9 | . . . . 3 1 . 4 8 9 4 4 2 8 1 2 3 8 7 Max Kills in Single Turn 4 | . . . . 1 1 1 1 2 4 2 1 2 2 1 2 1 2 4 Gunslinging . | . . . . . . . . . . . . . . . . . . . Exploded 4 | . . . . . . . . 2 3 1 1 1 2 . . 1 . 4 Melee . | . . . . . . . . . . . . . . . . . . . Uniques/NPCs Destroyed . | . . . . . . . . . . . . . . . . . . . Combat | -11 -10 -9 -8 -7 -7 -7 -7 -6 -6 -6 -6 -5 -5 -5 -5 -4 -4 -4 -------- Run | Yrd Mat Mat Mat Fac Low Low Dat Pro Fac Ext Cet Fac Upp Upp War Pro Fac Arm Hostile Shots Fired 1378 | . 3 10 11 119 16 . 19 17 179 86 74 39 71 6 . 39 50 639 Missed 543 | . 1 4 3 46 4 . 9 6 54 40 32 17 27 3 . 14 14 269 Hits 835 | . 2 6 8 73 12 . 10 11 125 46 42 22 44 3 . 25 36 370 Melee 29 | . . . . 2 . . . . . 2 . . . . . . . 25 Projectile 806 | . 2 6 8 71 12 . 10 11 125 44 42 22 44 3 . 25 36 345 AOE 9 | . . . . . . . . . . . . . . . 3 . . 6 Critical Strikes 43 | . . . 1 . . . . . 3 1 4 . 2 . . 2 . 30 Part Disruptions 8 | . . . . . . . . . . . . . . . . . 1 7 Damage Taken 14626 | . 35 74 129 642 152 . 460 187 1747 423 1061 523 916 55 110 293 554 7265 Core 1713 | . 3 59 18 96 . . 47 12 178 24 45 42 28 . . . 56 1105 Absorbed by Shields 1193 | . . . . 25 55 . . 73 119 320 221 . . . 55 207 109 9 Redirected to Shielding 90 | . . . . . . . . . . . . 53 21 . . . . 16 Ignored by Resistances 732 | . . . . . . . . . . . . . . . . . 154 578 Regen/Repaired (Parts) 977 | . . . . . . . . . 183 . 20 174 167 . 39 47 62 285 Core Remaining (%) 88 | 100 98 85 96 . . . . 77 . . 70 . . . . 93 . . Volleys Fired 492 | . . . . 33 5 10 17 24 124 64 29 21 28 2 14 14 29 78 Largest 4 | . . . . 3 3 3 1 2 4 4 4 4 4 4 4 4 4 4 Hottest 481 | . . . . 115 180 60 55 40 280 240 263 465 466 281 311 311 346 481 Shots Fired 1374 | . . . . 99 15 30 17 30 361 192 74 71 63 7 45 34 107 229 Gun 1196 | . . . . 99 15 30 4 10 331 192 63 71 53 7 31 17 80 193 Cannon 67 | . . . . . . . . . . . . . . . 14 8 26 19 Launcher 111 | . . . . . . . 13 20 30 . 11 . 10 . . 9 1 17 Special . | . . . . . . . . . . . . . . . . . . . Kinetic . | . . . . . . . . . . . . . . . . . . . Thermal 944 | . . . . 99 15 30 . 10 279 74 41 52 29 4 31 17 89 174 Explosive 46 | . . . . . . . . . 4 . 11 . 10 . . 9 1 11 Electromagnetic 384 | . . . . . . . 17 20 78 118 22 19 24 3 14 8 17 44 Robot Hit Streak 28 | . . . . 23 7 9 11 27 28 11 16 8 17 8 16 9 19 15 Robot Miss Streak 5 | . . . . 3 2 1 . 1 4 4 3 3 2 . 2 5 3 4 Penetration Max . | . . . . . . . . . . . . . . . . . . . Secondary Targets 14 | . . . . 1 . . . . 6 1 1 1 . 1 . . . 3 Max Gunslinging Chain 1 | . . . . 1 . . . . 1 1 1 1 . 1 . . . 1 Shots Hit Robots 934 | . . . . 75 10 19 9 18 235 119 61 47 51 7 36 23 78 146 Core Hits 592 | . . . . 28 2 8 12 26 180 49 51 31 25 2 14 15 40 109 Critical Kills 14 | . . . . . . . . . . . . 1 . . 4 . 4 5 Critical Parts Destroyed 21 | . . . . . . . . . . . . 1 . . 1 2 6 11 Critical Strikes 51 | . . . . 2 . . . . 4 5 . 3 3 . 6 2 10 16 Burn 7 | . . . . 2 . . . . 4 1 . . . . . . . . Meltdown 3 | . . . . . . . . . . . . . . . 3 . . . Destroy 35 | . . . . . . . . . . . . 3 1 . 3 2 10 16 Corrupt 6 | . . . . . . . . . . 4 . . 2 . . . . . Melee Attacks . | . . . . . . . . . . . . . . . . . . . Impact . | . . . . . . . . . . . . . . . . . . . Slashing . | . . . . . . . . . . . . . . . . . . . Piercing . | . . . . . . . . . . . . . . . . . . . Sneak Attacks . | . . . . . . . . . . . . . . . . . . . Combat Hostiles . | . . . . . . . . . . . . . . . . . . . Follow-up Attacks . | . . . . . . . . . . . . . . . . . . . Damage Inflicted 37201 | . 19 . 25 1472 290 361 434 1430 9208 3494 2223 1317 3027 169 1342 1463 2780 8147 Guns 22469 | . . . . 1472 290 361 37 180 5833 3308 1457 1242 1024 169 752 282 1794 4268 Cannons 1835 | . . . . . . . . . . . . . . . 382 210 692 551 Explosions 12801 | . . . . . . . 397 1250 3375 165 766 75 2003 . 208 971 294 3297 Melee . | . . . . . . . . . . . . . . . . . . . Ramming 96 | . 19 . 25 . . . . . . 21 . . . . . . . 31 Kinetic . | . . . . . . . . . . . . . . . . . . . Thermal 19591 | . . . . 1472 290 361 . 291 5105 1314 1105 1022 778 94 1007 313 2142 4297 Explosive 7461 | . . . . . . . . . 1380 . 766 . 1875 . . 971 294 2175 Electromagnetic 10053 | . . . . . . . 434 1139 2723 2159 352 295 374 75 335 179 344 1644 Impact . | . . . . . . . . . . . . . . . . . . . Slashing . | . . . . . . . . . . . . . . . . . . . Piercing . | . . . . . . . . . . . . . . . . . . . Highest Corruption 43 | . . . . 2 2 2 14 14 4 6 8 2 2 2 13 . 1 43 Average Corruption 5 | . . . . 2 2 2 4 14 3 4 6 1 2 2 10 . 1 8 Corruption Purged . | . . . . . . . . . . . . . . . . . . . Corruption Blocked . | . . . . . . . . . . . . . . . . . . . Effects 144 | . . . . 1 4 8 3 24 19 31 9 2 5 8 . . 2 28 Message Errors 30 | . . . . . . 2 . 5 4 9 1 1 2 1 . . 1 4 Matter Fused 47 | . . . . . 3 4 3 9 5 8 1 . . 3 . . 1 10 Heat Flow Errors 12 | . . . . . 1 . . 4 2 2 . . 1 . . . . 2 Energy Discharges 10 | . . . . . . . . 2 1 1 1 . . 2 . . . 3 Parts Rejected 3 | . . . . . . . . . 1 . . . . . . . . 2 Data Loss (minor) 12 | . . . . 1 . 2 . 1 2 1 2 1 . 2 . . . . Data Loss (major) 7 | . . . . . . . . 1 1 1 . . 2 . . . . 2 Misfires 7 | . . . . . . . . 2 1 2 2 . . . . . . . Alerts 5 | . . . . . . . . . . 4 1 . . . . . . . Misdirections 2 | . . . . . . . . . . . . . . . . . . 2 Weapon Failures 9 | . . . . . . . . . 2 3 1 . . . . . . 3 Overload Shots 88 | . . . . . 6 . . . 50 13 4 1 3 . . . . 11 Effects 5 | . . . . . . . . . 3 1 . 1 . . . . . . Energy Bleed 2 | . . . . . . . . . 2 . . . . . . . . . Heat Surge 2 | . . . . . . . . . 1 . . 1 . . . . . . Short Circuit 1 | . . . . . . . . . . 1 . . . . . . . . Overflow Damage 561 | . . . . . . . . . 125 15 22 . 79 . 33 16 91 180 Projectiles 73 | . . . . . . . . . . . . . . . 12 8 17 36 Explosions 488 | . . . . . . . . . 125 15 22 . 79 . 21 8 74 144 Melee . | . . . . . . . . . . . . . . . . . . . Knockbacks 1 | . . . . . . . . . . 1 . . . . . . . . Impact 1 | . . . . . . . . . . 1 . . . . . . . . Kinetic . | . . . . . . . . . . . . . . . . . . . Secondary . | . . . . . . . . . . . . . . . . . . . Self-Inflicted Damage 563 | . 9 . 11 . . . . 63 58 10 6 . 14 . . . . 392 Shots 32 | . . . . . . . . 5 3 . 1 . 1 . . . . 22 Rammed 10 | . 3 . 6 . . . . . . 1 . . . . . . . . Targets Rammed 14 | . 3 . 6 . . . . . . 1 . . . . . . . 4 Kicked 4 | . . . . . . . . . . . . . . . . . . 4 Crushed . | . . . . . . . . . . . . . . . . . . . Highest Temperature 515 | . . . . 106 225 . 89 149 323 214 104 370 515 . . . . 265 Average Temperature 56 | . . . . 57 73 . 24 70 64 40 31 50 75 . . . . 67 Received Heat Transfer 2733 | . 15 . 81 172 18 . . 18 506 96 161 27 434 . . 83 103 1019 Effects 3 | . . . . . . . . . . . . . 3 . . . . . Shutdowns 2 | . . . . . . . . . . . . . 2 . . . . . Interference 1 | . . . . . . . . . . . . . 1 . . . . . Siege Activations . | . . . . . . . . . . . . . . . . . . . Martial Activations . | . . . . . . . . . . . . . . . . . . . Shielding Activations . | . . . . . . . . . . . . . . . . . . . Robots Disrupted . | . . . . . . . . . . . . . . . . . . . Combat Hostiles . | . . . . . . . . . . . . . . . . . . . Robots Corrupted 22 | . . . . . . . 4 3 5 3 1 . 1 . . . . 5 Combat Hostiles 21 | . . . . . . . 4 3 4 3 1 . 1 . . . . 5 Parts Fried 51 | . . . . . . . 5 3 10 17 2 3 2 . . . 1 8 Impact Corruptions . | . . . . . . . . . . . . . . . . . . . Robots Melted 10 | . . . . 2 . . . . 3 . 1 1 . . 3 . . . Combat Hostiles 6 | . . . . 2 . . . . . . 1 1 . . 2 . . . Parts Melted 70 | . . . . 6 1 . . . 26 1 6 6 . . 7 1 7 9 Heat Transferred 29776 | . . . . 2836 435 703 . 383 9336 2026 2170 1720 954 148 1173 448 2800 4644 Parts Sabotaged 4 | . . . . . . . . . . . . . . . . . . 4 Parts Stolen . | . . . . . . . . . . . . . . . . . . . Parts Stripped . | . . . . . . . . . . . . . . . . . . . Power Chain Reactions 17 | . . . . . . . . 2 8 2 . 1 2 . 1 . . 1 Alert | -11 -10 -9 -8 -7 -7 -7 -7 -6 -6 -6 -6 -5 -5 -5 -5 -4 -4 -4 ------- Run | Yrd Mat Mat Mat Fac Low Low Dat Pro Fac Ext Cet Fac Upp Upp War Pro Fac Arm Maximum Alert Level 5 | . . . . . . . . . 5 4 3 2 . . . . 1 4 Low Security (%) 29 | 100 100 100 100 100 . . . . 27 . . . . . . . 57 3 Level 1 19 | . . . . . . . . . 10 . . 88 . . . . 42 21 Level 2 12 | . . . . . . . . . 14 24 10 11 . . . . . 19 Level 3 25 | . . . . . . . . . 17 54 89 . . . . . . 44 Level 4 11 | . . . . . . . . . 25 21 . . . . . . . 11 Level 5 . | . . . . . . . . . 3 . . . . . . . . . High Security . | . . . . . . . . . . . . . . . . . . . Max Security . | . . . . . . . . . . . . . . . . . . . Peak Influence 1611 | . . . 15 160 . . . . 1611 1276 785 422 . . . . 305 1221 Initial 786 | . . . . 2 . . . . 61 786 711 422 . . . . 18 139 Average 527 | . . . 3 38 . . . . 708 841 736 348 . . . . 172 702 Influence Increases 7385 | . . . 15 302 30 5 . 412 2109 1124 324 252 240 58 155 159 472 1728 Destroy 0b10 Robot/C 4300 | . . . . 160 20 . . 300 1160 620 220 160 220 40 120 120 200 960 Destroy 0b10 Robot/NC 325 | . . . . 40 . 5 . 5 135 65 10 15 . . 5 10 35 . Destroy Leader 678 | . . . . 44 10 . . 30 208 64 10 42 20 10 . 20 50 170 Allied During Kill 362 | . . . . . . . . 2 9 284 20 . . 8 30 9 . . Successful Hack 69 | . . . . 27 . . . . . 35 . . . . . . . 7 Disable Machine 375 | . . . . . . . . . 90 45 30 15 . . . . 120 75 Anti-Garrison Action 350 | . . . . . . . . . 350 . . . . . . . . . Destroy Structure 431 | . . . . 1 . . . . 97 11 34 20 . . . . 52 216 Partial Spotted 30 | . . . . . . . . . . . . . . . . . . 30 Lose Combat Pursuer 465 | . . . 15 30 . . . 75 60 . . . . . . . 15 270 Influence Decreases 6234 | . . . 10 176 161 5 . 314 602 1459 839 629 501 173 118 169 216 862 Entered New Map 2163 | . . . . 3 50 . . . 37 819 559 333 141 23 2 39 11 146 Time Decay 3087 | . . . 10 173 101 5 . 294 465 440 140 286 310 140 62 110 195 356 Lost Part 640 | . . . . . 10 . . . 100 40 80 10 30 10 . . . 360 Lost Ally 344 | . . . . . . . . 20 . 160 60 . 20 . 54 20 10 . Squads Dispatched 43 | . . . 1 2 . . . . 20 5 1 4 . . . . 1 9 Investigation 12 | . . . 1 1 . . . . 4 2 1 2 . . . . 1 . Extermination 5 | . . . . 1 . . . . 1 . . 2 . . . . . 1 Reinforcement 13 | . . . . . . . . . 8 . . . . . . . . 5 Assault 10 | . . . . . . . . . 4 3 . . . . . . . 3 Garrison 2 | . . . . . . . . . 2 . . . . . . . . . Intercept 1 | . . . . . . . . . 1 . . . . . . . . . Searches Triggered . | . . . . . . . . . . . . . . . . . . . Construction Impeded 4 | . . . . . . . . . 4 . . . . . . . . . Haulers Reinforced 2 | . . . . . . . . . 2 . . . . . . . . . Active Scanning Responses . | . . . . . . . . . . . . . . . . . . . Cargo Convoy Interrupts . | . . . . . . . . . . . . . . . . . . . Stealth | -11 -10 -9 -8 -7 -7 -7 -7 -6 -6 -6 -6 -5 -5 -5 -5 -4 -4 -4 --------- Run | Yrd Mat Mat Mat Fac Low Low Dat Pro Fac Ext Cet Fac Upp Upp War Pro Fac Arm Distress Signals 13 | . . . 1 . . . . . 5 2 2 . . . . . . 3 Communications Jammed . | . . . . . . . . . . . . . . . . . . . Distress Signals . | . . . . . . . . . . . . . . . . . . . Times Spotted 316 | . 3 3 4 10 2 . 4 17 78 35 14 9 11 1 26 7 12 80 Peak Tracking Total 18 | . 4 3 4 4 1 . 4 9 5 7 5 2 8 1 12 3 8 18 Tactical Retreats 15 | . . . 1 1 . . . 2 3 . . . . . . . 1 7 Traps | -11 -10 -9 -8 -7 -7 -7 -7 -6 -6 -6 -6 -5 -5 -5 -5 -4 -4 -4 ------- Run | Yrd Mat Mat Mat Fac Low Low Dat Pro Fac Ext Cet Fac Upp Upp War Pro Fac Arm Traps Triggered 10 | . . 1 1 2 . . . . 1 2 . 1 . . . . 1 1 Indirectly . | . . . . . . . . . . . . . . . . . . . Trap Hack Attempts . | . . . . . . . . . . . . . . . . . . . Triggered . | . . . . . . . . . . . . . . . . . . . Disarmed . | . . . . . . . . . . . . . . . . . . . Reprogrammed . | . . . . . . . . . . . . . . . . . . . Reused . | . . . . . . . . . . . . . . . . . . . Traps Extracted . | . . . . . . . . . . . . . . . . . . . Installed . | . . . . . . . . . . . . . . . . . . . Triggered . | . . . . . . . . . . . . . . . . . . . Machines | -11 -10 -9 -8 -7 -7 -7 -7 -6 -6 -6 -6 -5 -5 -5 -5 -4 -4 -4 ---------- Run | Yrd Mat Mat Mat Fac Low Low Dat Pro Fac Ext Cet Fac Upp Upp War Pro Fac Arm Machines Disabled 31 | . . . . . . . . . 7 4 4 1 . . . . 10 5 Max in Single Turn 4 | . . . . . . . . . 3 1 1 1 . . . . 4 1 Garrison Access 3 | . . . . 1 . . . . 2 . . . . . . . . . Energy Cycler 1 | . . . . . . . . . . . . . . . . . . 1 Machines Repaired . | . . . . . . . . . . . . . . . . . . . Machines Dismantled . | . . . . . . . . . . . . . . . . . . . Machines Sabotaged . | . . . . . . . . . . . . . . . . . . . Overloaded Fab Kills . | . . . . . . . . . . . . . . . . . . . Hacking | -11 -10 -9 -8 -7 -7 -7 -7 -6 -6 -6 -6 -5 -5 -5 -5 -4 -4 -4 --------- Run | Yrd Mat Mat Mat Fac Low Low Dat Pro Fac Ext Cet Fac Upp Upp War Pro Fac Arm Machines Accessed 30 | . . . . 5 . 2 4 . 5 6 1 3 . . 1 . . 3 Terminals 12 | . . . . 1 . . . . 2 6 1 1 . . . . . 1 Fabricators 2 | . . . . 2 . . . . . . . . . . . . . . Repair Stations 3 | . . . . . . . . . 1 . . 1 . . . . . 1 Recycling Units 1 | . . . . . . . . . . . . . . . . . . 1 Scanalyzers 2 | . . . . 1 . . . . . . . 1 . . . . . . Garrison Access 3 | . . . . 1 . . . . 2 . . . . . . . . . Total Hacks 79 | . . . . 8 . 6 30 . 10 11 3 6 . . 1 . . 4 Successful 52 | . . . . 3 . 6 30 . 4 5 . 2 . . 1 . . 1 Failed 27 | . . . . 5 . . . . 6 6 3 4 . . . . . 3 Catastrophic 7 | . . . . 1 . . . . . 2 2 1 . . . . . 1 Database Lockouts . | . . . . . . . . . . . . . . . . . . . Manual 17 | . . . . 4 . . . . 8 . 1 1 . . 1 . . 2 Terminals 24 | . . . . 2 . . . . 5 11 3 2 . . . . . 1 Fabricators 2 | . . . . 2 . . . . . . . . . . . . . . Repair Stations 4 | . . . . . . . . . 1 . . 1 . . . . . 2 Recycling Units 1 | . . . . . . . . . . . . . . . . . . 1 Scanalyzers 5 | . . . . 2 . . . . . . . 3 . . . . . . Garrison Access 6 | . . . . 2 . . . . 4 . . . . . . . . . Terminal Hacks 44 | . . . . . . 6 30 . 1 5 . . . . 1 . . 1 Record 16 | . . . . . . 5 11 . . . . . . . . . . . Part Schematic 11 | . . . . . . . 11 . . . . . . . . . . . Robot Schematic 5 | . . . . . . . 5 . . . . . . . . . . . Prototype ID Bank 3 | . . . . . . . 3 . . . . . . . . . . . Open Door 9 | . . . . . . 1 . . 1 5 . . . . 1 . . 1 Fabricator Hacks . | . . . . . . . . . . . . . . . . . . . Repair Station Hacks . | . . . . . . . . . . . . . . . . . . . Recycling Unit Hacks . | . . . . . . . . . . . . . . . . . . . Scanalyzer 2 | . . . . 1 . . . . . . . 1 . . . . . . Retrieve Study 2 | . . . . 1 . . . . . . . 1 . . . . . . Garrison Access Hacks 1 | . . . . 1 . . . . . . . . . . . . . . Seal Access 1 | . . . . 1 . . . . . . . . . . . . . . Unauthorized Hacks 5 | . . . . 1 . . . . 3 . . 1 . . . . . . Terminals 1 | . . . . . . . . . 1 . . . . . . . . . Botnet 1 | . . . . . . . . . 1 . . . . . . . . . Fabricators 1 | . . . . 1 . . . . . . . . . . . . . . Fabnet 1 | . . . . 1 . . . . . . . . . . . . . . Repair Stations 2 | . . . . . . . . . 1 . . 1 . . . . . . Patch 2 | . . . . . . . . . 1 . . 1 . . . . . . Recycling Units . | . . . . . . . . . . . . . . . . . . . Scanalyzers . | . . . . . . . . . . . . . . . . . . . Garrison Access 1 | . . . . . . . . . 1 . . . . . . . . . Jam 1 | . . . . . . . . . 1 . . . . . . . . . Data Cores Recovered 1 | . . . . . . . . . . . . . . . . . 1 . Used . | . . . . . . . . . . . . . . . . . . . Hacking Detections 16 | . . . . 4 . . . . 3 4 1 2 . . . . . 2 Full Trace Events 7 | . . . . 1 . . . . 2 2 1 1 . . . . . . Feedback Events 1 | . . . . . . . . . . . 1 . . . . . . . Corruption 1 | . . . . . . . . . . . 1 . . . . . . . Feedback Blocked . | . . . . . . . . . . . . . . . . . . . Robot Schematics Acquired 5 | . . . . . . . 5 . . . . . . . . . . . Robots Built . | . . . . . . . . . . . . . . . . . . . Authchips . | . . . . . . . . . . . . . . . . . . . Time . | . . . . . . . . . . . . . . . . . . . Total Robot Build Rating . | . . . . . . . . . . . . . . . . . . . Part Schematics Acquired 11 | . . . . . . . 11 . . . . . . . . . . . Parts Built . | . . . . . . . . . . . . . . . . . . . Authchips . | . . . . . . . . . . . . . . . . . . . Time . | . . . . . . . . . . . . . . . . . . . Total Part Build Rating . | . . . . . . . . . . . . . . . . . . . Part Studies Acquired 2 | . . . . 1 . . . . . . . 1 . . . . . . Parts Repaired . | . . . . . . . . . . . . . . . . . . . Time . | . . . . . . . . . . . . . . . . . . . Parts Recycled . | . . . . . . . . . . . . . . . . . . . Recycled Matter . | . . . . . . . . . . . . . . . . . . . Retrieved Matter . | . . . . . . . . . . . . . . . . . . . Retrieved Components . | . . . . . . . . . . . . . . . . . . . Parts Scanalyzed . | . . . . . . . . . . . . . . . . . . . Part Schematics Acquired . | . . . . . . . . . . . . . . . . . . . Parts Damaged . | . . . . . . . . . . . . . . . . . . . Bothacking | -11 -10 -9 -8 -7 -7 -7 -7 -6 -6 -6 -6 -5 -5 -5 -5 -4 -4 -4 ------------ Run | Yrd Mat Mat Mat Fac Low Low Dat Pro Fac Ext Cet Fac Upp Upp War Pro Fac Arm Used RIF Installer . | . . . . . . . . . . . . . . . . . . . Robots Hacked 5 | . . . . . . . . 1 2 1 . . 1 . . . . . Non-combat . | . . . . . . . . . . . . . . . . . . . Combat 5 | . . . . . . . . 1 2 1 . . 1 . . . . . Robot Hacks Applied . | . . . . . . . . . . . . . . . . . . . Relay Couplers Released 3 | . . . . . . . . . 3 . . . . . . . . . Machine Destruction 3 | . . . . . . . . . 3 . . . . . . . . . Fabnet Peak Effective % 3 | . . . . . . . . 3 3 3 3 1 1 1 1 . . . Autooverrided 5 | . . . . . . . . 1 2 1 . . 1 . . . . . Robots Rewired 10 | . . . . . . . . . . 4 . . 2 . 4 . . . Allies Hacked . | . . . . . . . . . . . . . . . . . . . Hacks Repelled . | . . . . . . . . . . . . . . . . . . . Allies | -11 -10 -9 -8 -7 -7 -7 -7 -6 -6 -6 -6 -5 -5 -5 -5 -4 -4 -4 -------- Run | Yrd Mat Mat Mat Fac Low Low Dat Pro Fac Ext Cet Fac Upp Upp War Pro Fac Arm Total Allies 22 | . . . . . . . . 1 2 12 . . 3 . 4 . . . Largest Group 7 | . . . . . . . . 1 1 7 3 . 2 2 6 2 1 . Highest-Rated Group 314 | . . . . . . . . 49 47 314 213 . 59 59 246 105 64 . Highest-Rated Ally 159 | . . . . . . . . 49 47 159 151 . 30 30 64 64 64 . Total Orders . | . . . . . . . . . . . . . . . . . . . Ally Attacks 197 | . . . . . . . . 2 6 120 27 . 1 4 33 4 . . Total Damage 4720 | . . . . . . . . 26 170 2486 670 . . 68 1177 123 . . Kills 27 | . . . . . . . . 1 1 17 3 . . 1 3 1 . . Allies Corrupted . | . . . . . . . . . . . . . . . . . . . Allies Melted 2 | . . . . . . . . . . . . . . . 2 . . . Intel | -11 -10 -9 -8 -7 -7 -7 -7 -6 -6 -6 -6 -5 -5 -5 -5 -4 -4 -4 ------- Run | Yrd Mat Mat Mat Fac Low Low Dat Pro Fac Ext Cet Fac Upp Upp War Pro Fac Arm Active Infowar (turns) 66 | . . . 2 64 . . . . . . . . . . . . . . Optics 66 | . . . 2 64 . . . . . . . . . . . . . . Robot Analysis Total 154 | . . . . . . . 154 . . . . . . . . . . . Derelict Logs Recovered 4 | . . . . . . . . 1 . . . . 3 . . . . . Drone Launches . | . . . . . . . . . . . . . . . . . . . Drone Recoveries . | . . . . . . . . . . . . . . . . . . . Exploration | -11 -10 -9 -8 -7 -7 -7 -7 -6 -6 -6 -6 -5 -5 -5 -5 -4 -4 -4 ------------- Run | Yrd Mat Mat Mat Fac Low Low Dat Pro Fac Ext Cet Fac Upp Upp War Pro Fac Arm Turns Passed 9242 | 13 42 59 88 770 256 575 223 673 1219 1080 282 623 699 283 804 288 464 801 Spaces Moved 5731 | 19 78 117 138 575 235 487 121 357 521 631 137 372 454 204 482 171 248 384 Core 502 | 19 78 117 138 110 . . . . 2 . . . . . . . . 38 Treads . | . . . . . . . . . . . . . . . . . . . Legs 226 | . . . . . . . . . . . . . . . . . . 226 Wheels 5003 | . . . . 465 235 487 121 357 519 631 137 372 454 204 482 171 248 120 Hover . | . . . . . . . . . . . . . . . . . . . Flight . | . . . . . . . . . . . . . . . . . . . Fastest Speed 50 | 50 50 50 50 50 100 100 115 175 115 130 130 125 125 125 125 140 105 50 Average Speed 122 | 50 50 50 50 103 104 109 130 175 133 130 130 139 125 125 139 140 125 113 Slowest Speed 1400 | 50 50 50 100 135 130 130 175 175 1400 130 130 190 125 125 155 140 140 300 Overloaded Moves . | . . . . . . . . . . . . . . . . . . . Propulsion Burnouts . | . . . . . . . . . . . . . . . . . . . Robots Hopped . | . . . . . . . . . . . . . . . . . . . Potential Cave-ins . | . . . . . . . . . . . . . . . . . . . Cave-ins Triggered . | . . . . . . . . . . . . . . . . . . . Exploration Rate (%) 39 | 3 23 20 16 13 46 60 78 64 20 65 67 11 70 44 77 37 7 33 Regions Visited 18 Branch Regions 11 Pre-discovered Areas 33 | . . . . . . . 33 . . . . . . . . . . . Known Exits Taken 1 | . . . . . . . . . . . . 1 . . . . . . Unknown Exits Taken 17 | 1 1 1 1 1 1 1 1 1 1 1 1 . 1 1 1 1 1 . Scrap Searched 9 | . . . . . 2 3 . . . . . . 2 1 . 1 . . Spaces Dug 41 | . . . . . . . . 8 2 . . 2 28 . . . . 1 Terrain Destroyed 548 | . . . . . 1 . . 10 94 6 111 8 72 . 2 80 25 139 Melee . | . . . . . . . . . . . . . . . . . . . Projectile 43 | . . . . . 1 . . . 12 1 . 6 2 . 1 1 3 16 AOE 505 | . . . . . . . . 10 82 5 111 2 70 . 1 79 22 123 Terrain Rammed . | . . . . . . . . . . . . . . . . . . . Walls Destroyed . | . . . . . . . . . . . . . . . . . . . Machines Disabled . | . . . . . . . . . . . . . . . . . . . Actions | -11 -10 -9 -8 -7 -7 -7 -7 -6 -6 -6 -6 -5 -5 -5 -5 -4 -4 -4 --------- Run | Yrd Mat Mat Mat Fac Low Low Dat Pro Fac Ext Cet Fac Upp Upp War Pro Fac Arm Total 7128 | 20 80 116 157 706 240 514 172 381 884 788 186 433 535 228 586 194 328 580 Wait 291 | . . . . 26 1 1 10 . 149 17 . 9 12 18 7 3 13 25 Move 5714 | 18 77 116 138 574 234 486 120 356 520 630 136 371 453 203 481 170 247 384 Hop . | . . . . . . . . . . . . . . . . . . . Pick Up 111 | . . . 4 13 . 8 5 . 28 8 4 10 4 2 13 2 2 8 Fast Attach 67 | 2 . . 3 20 . 2 2 . 7 1 6 1 1 1 1 1 5 14 Attach 64 | . . . 2 8 . . 5 . 9 5 6 4 3 . 1 . 2 19 Detach 12 | . . . 4 3 . . 2 . 1 . 1 . . . . . 1 . Swap 96 | . . . . 5 . 2 6 1 21 7 3 4 3 . 6 1 19 18 Drop 116 | . . . 1 24 . 5 5 . 20 6 1 13 1 2 16 3 10 9 Fire 492 | . . . . 33 5 10 17 24 124 64 29 21 28 2 14 14 29 78 Melee . | . . . . . . . . . . . . . . . . . . . Ram 9 | . 3 . 5 . . . . . . 1 . . . . . . . . Kick 4 | . . . . . . . . . . . . . . . . . . 4 Crush . | . . . . . . . . . . . . . . . . . . . Escape Stasis 29 | . . . . . . . . . 5 16 . . . . . . . 8 Rewire 123 | . . . . . . . . . . 33 . . 30 . 47 . . 13 Trap . | . . . . . . . . . . . . . . . . . . . Miscellaneous . | . . . . . . . . . . . . . . . . . . . Route ------- -11/Scrapyard -10/Materials -9/Materials -8/Materials -7/Factory -7/Lower Caves -7/Lower Caves -7/Data Miner -6/Proximity Caves -6/Factory -6/Extension (discovered 2 exits: *Fac / *Cet) -6/Cetus (discovered 2 exits: *Fac / [*Arc]) -5/Factory -5/Upper Caves -5/Upper Caves -5/Warlord -4/Proximity Caves -4/Factory (discovered 3 exits: Res / Upp / *Arm) -4/Armory (discovered 1 exit: *Res) History --------- Turn | Location | Event 3 | -11/Scrapyard | Discovered new exit (range 16) 14 | -11/Scrapyard | Entered Materials 54 | -10/Materials | Discovered new exit (range 6) 56 | -10/Materials | Entered another Materials area 56 | -9/Materials | Evolved 2 slots: Power x1, Utility x1 112 | -9/Materials | Discovered new exit (range 5) 115 | -9/Materials | Entered another Materials area 115 | -8/Materials | Evolved 2 slots: Utility x2 192 | -8/Materials | Discovered new exit (range 16) 203 | -8/Materials | Entered Factory 203 | -7/Factory | Evolved 2 slots: Utility x1, Weapon x1 559 | -7/Factory | Build established: Gunner 927 | -7/Factory | Discovered new exit (range 8) 973 | -7/Factory | Entered Lower Caves 1185 | -7/Lower Caves | Spotted B-75 Beast 1205 | -7/Lower Caves | Build established: Tank 1221 | -7/Lower Caves | Discovered new exit (range 8) 1229 | -7/Lower Caves | Entered another Lower Caves area 1306 | -7/Lower Caves | Entered an active Warlord outpost 1331 | -7/Lower Caves | Learned location of 1 exit from Research 1331 | -7/Lower Caves | Learned Factory stockpile data 1331 | -7/Lower Caves | Learned Armory terminal intel 1331 | -7/Lower Caves | Learned Extension garrison access intel 1614 | -7/Lower Caves | Encountered a Warlord checkpoint 1782 | -7/Lower Caves | Discovered new exit (range 12) 1804 | -7/Lower Caves | Entered Data Miner 1807 | -7/Data Miner | Discovered new exit (range 7) 1829 | -7/Data Miner | Met Data Miner 1857 | -7/Data Miner | Learned location of Section 7 (-3) 1857 | -7/Data Miner | Acquired the access code to Warlord's prototype stash 1868 | -7/Data Miner | Received God Mode back door access code from Data Miner 1885 | -7/Data Miner | Interfaced with the Data Conduit 1946 | -7/Data Miner | Lost 4 parts (1p1n2w) 1973 | -7/Data Miner | System corruption reached 10% 2027 | -7/Data Miner | Entered Proximity Caves 2100 | -6/Proximity Caves | Destroyed 8 combat bots 2209 | -6/Proximity Caves | Build established: Scavenger-Tank 2658 | -6/Proximity Caves | Discovered new exit (range 3) 2682 | -6/Proximity Caves | Learned Factory emergency access door positions 2700 | -6/Proximity Caves | Entered Factory 2700 | -6/Factory | Evolved 2 slots: Utility x1, Weapon x1 2703 | -6/Factory | Loaded intel: 256 machine locations 2884 | -6/Factory | Garrison activated, responded to threat 3212 | -6/Factory | Destroyed 8 combat bots 3378 | -6/Factory | Destroyed 9 combat bots 3400 | -6/Factory | First assault squad dispatched 3855 | -6/Factory | Destroyed 8 combat bots 3870 | -6/Factory | Build established: Scavenger-Gunner 3888 | -6/Factory | Intercept squad dispatched 3907 | -6/Factory | Spotted Tracker 3914 | -6/Factory | Discovered new exit (range 6) 3918 | -6/Factory | Spotted Combat Programmer 3919 | -6/Factory | Entered Extension 3920 | -6/Extension | Loaded intel: 35 machine locations 3963 | -6/Extension | Rescued a captive Derelict 4018 | -6/Extension | Rescued A7 4028 | -6/Extension | Rescued a captive Derelict 4107 | -6/Extension | Rescued a captive Derelict 4125 | -6/Extension | Rescued a captive Derelict 4127 | -6/Extension | Rescued a captive Derelict 4167 | -6/Extension | Rescued a captive Derelict 4170 | -6/Extension | Rescued a captive Derelict 4269 | -6/Extension | First assault squad dispatched 4384 | -6/Extension | Build established: Gunner 4495 | -6/Extension | Spotted B-75 Beast 4505 | -6/Extension | Destroyed B-75 Beast 4518 | -6/Extension | Spotted B-75 Beast 4535 | -6/Extension | Allies destroyed B-75 Beast 4869 | -6/Extension | Disrupted transfer network 4916 | -6/Extension | Build established: Scavenger-Tank 4975 | -6/Extension | Discovered new exit (range 16) 4977 | -6/Extension | Discovered new exit (range 14) 4999 | -6/Extension | Entered Cetus 4999 | -6/Cetus | Accompanied by 3 allies (A7) 5000 | -6/Cetus | Loaded intel: 24 machine locations 5004 | -6/Cetus | Acquired a Cetus Manufacturing Module code from A7 5017 | -6/Cetus | Spotted Cetus Guard 5018 | -6/Cetus | Spotted Cetus Guard 5020 | -6/Cetus | Spotted Cetus Guard 5020 | -6/Cetus | Spotted Cetus Guard 5025 | -6/Cetus | Destroyed Cetus Guard 5038 | -6/Cetus | Destroyed Cetus Guard 5044 | -6/Cetus | Allies destroyed Cetus Guard 5048 | -6/Cetus | Destroyed Cetus Guard 5066 | -6/Cetus | Lost 3 parts (1n2w) 5090 | -6/Cetus | Cetus Manufacturing Module disabled 5109 | -6/Cetus | Failed to start Cetus Manufacturing Module 5121 | -6/Cetus | Escorted A7 to Cetus Mainframe 5155 | -6/Cetus | Discovered new exit (range 15) 5178 | -6/Cetus | Spotted Cetus Guard 5179 | -6/Cetus | Spotted Cetus Guard 5181 | -6/Cetus | Spotted Cetus Guard 5182 | -6/Cetus | Spotted Cetus Guard 5194 | -6/Cetus | Destroyed Cetus Guard 5200 | -6/Cetus | Destroyed Cetus Guard 5206 | -6/Cetus | Destroyed Cetus Guard 5219 | -6/Cetus | Destroyed Cetus Guard 5232 | -6/Cetus | Lost 5 parts (2u3w) 5236 | -6/Cetus | Extracted ID and sensor layout for unrecognized location from A7's data core 5240 | -6/Cetus | Found Prototype Protection 5240 | -6/Cetus | Identified Med. Regenerative Plating 5262 | -6/Cetus | Discovered new exit (range 15) 5268 | -6/Cetus | Met Revision 17 5281 | -6/Cetus | Entered Factory 5281 | -5/Factory | Evolved 2 slots: Utility x2 5282 | -5/Factory | Loaded intel: 274 machine locations 5827 | -5/Factory | Discovered new exit (range 9) 5857 | -5/Factory | Identified exit to Upper Caves 5904 | -5/Factory | Entered Upper Caves 5932 | -5/Upper Caves | Encountered a Warlord checkpoint 6213 | -5/Upper Caves | Spotted B-75 Beast 6269 | -5/Upper Caves | Destroyed B-75 Beast 6320 | -5/Upper Caves | Learned Factory stockpile data 6356 | -5/Upper Caves | Attracted the attention of an 0b10 outpost 6356 | -5/Upper Caves | Learned Factory garrison access intel 6411 | -5/Upper Caves | Destroyed 8 combat bots 6554 | -5/Upper Caves | Learned location of 2 exits from Factory 6585 | -5/Upper Caves | Discovered new exit (range 9) 6603 | -5/Upper Caves | Entered another Upper Caves area 6603 | -5/Upper Caves | Accompanied by 2 allies 6848 | -5/Upper Caves | Discovered new exit (range 14) 6886 | -5/Upper Caves | Entered Warlord 6886 | -5/Warlord | Accompanied by 2 allies 6900 | -5/Warlord | System corruption reached 10% 6934 | -5/Warlord | System corruption cleaned by Quarantine Array 6998 | -5/Warlord | Opened Warlord's prototype stash 7005 | -5/Warlord | Found Vortex Chain Reactor 7025 | -5/Warlord | Found Exp. Core Analyzer 7029 | -5/Warlord | Found Thermal Barrier 7036 | -5/Warlord | Found Exp. Phase Shifter 7145 | -5/Warlord | Met Warlord 7170 | -5/Warlord | Warlord's base attacked by MAIN.C 7520 | -5/Warlord | Warlord forces counterattacked 7527 | -5/Warlord | Spotted Executioner 7527 | -5/Warlord | Spotted B-75 Beast 7527 | -5/Warlord | Allies destroyed Executioner 7533 | -5/Warlord | Destroyed B-75 Beast 7541 | -5/Warlord | Spotted B-86 Titan 7573 | -5/Warlord | Lost 10 allies 7589 | -5/Warlord | Spotted Striker 7592 | -5/Warlord | Spotted Executioner 7594 | -5/Warlord | Destroyed Executioner 7659 | -5/Warlord | Lost 10 allies 7665 | -5/Warlord | Discovered new exit (range 12) 7671 | -5/Warlord | Spotted Striker 7690 | -5/Warlord | Entered Proximity Caves 7690 | -4/Proximity Caves | Accompanied by 2 allies 7952 | -4/Proximity Caves | Discovered new exit (range 10) 7978 | -4/Proximity Caves | Entered Factory 7978 | -4/Factory | Accompanied by 1 ally 7978 | -4/Factory | Evolved 2 slots: Propulsion x2 7979 | -4/Factory | Identified exit to Research 7979 | -4/Factory | Identified exit to Upper Caves 7981 | -4/Factory | Loaded intel: 314 machine locations 7982 | -4/Factory | Loaded intel: 4 garrison access locations 8173 | -4/Factory | Discovered new exit (range 11) 8279 | -4/Factory | Destroyed 8 combat bots 8442 | -4/Factory | Entered Armory 8443 | -4/Armory | Loaded intel: 90 machine locations 8444 | -4/Armory | Loaded intel: 13 terminal locations 8556 | -4/Armory | Destroyed 7 combat bots 8764 | -4/Armory | Energy Cycler disabled 8821 | -4/Armory | Lost 3 parts (1n1u1w) 8930 | -4/Armory | System corruption reached 10% 8940 | -4/Armory | Spotted B-86 Titan 8942 | -4/Armory | First assault squad dispatched 9004 | -4/Armory | Destroyed 7 combat bots 9013 | -4/Armory | Discovered exit to Research (range 5) 9046 | -4/Armory | Lost 10 parts (5u5w) 9088 | -4/Armory | Lost 3 parts (2u1w) 9148 | -4/Armory | Found Gamma Bomb Array 9150 | -4/Armory | Found Gamma Bomb Array 9152 | -4/Armory | Found Gamma Bomb Array 9180 | -4/Armory | System corruption reached 30% 9185 | -4/Armory | Destroyed 7 combat bots 9187 | -4/Armory | Core integrity fell below 50% 9218 | -4/Armory | Core integrity fell below 20% 9243 | -4/Armory | Destroyed by G-67 Veteran with Plasma Rifle Last Messages --------------- payload. 09216_ G-73 Enforcer unfolds itself. 09216_ G-67 Veteran unfolds itself. 09216_ L-61 Swordsman unfolds itself. 09216_ E-15 Imp unfolds itself. 09217_ Exp. Core Analyzer destroyed. 09217_ Critical hit (Blast). 09217_ Knocked back. 09217_ Slug penetrates Wall. 09223_ System corrupted: Matter fused (-5). 09223_ Attempting to rewire B-60 Warrior. 09224_ Centrium Leg blown off. 09224_ Imp. Armor Integrity Analyzer blown off. 09224_ Imp. Energy Well blown off. 09224_ E-15 Imp destroyed. 09227_ Attempting to rewire B-60 Warrior. 09230_ Adv. VSS Leg severed. 09230_ Attempting to rewire B-60 Warrior. 09238_ System corrupted: Matter fused (-7). 09238_ Attempting to rewire B-60 Warrior. Map ----- +----------------------------------------------------+ | ???????????????????????????????????# ^ | | ???????????????????????????????????# ^ | | ??????????????????????????????######%* | | ?????????????????????########## = | | ?????????????????????# # | | ?????????????????????# """ # ############# | | ??????#########??????# """ # #???????????# | | ??????# #??????# " # #???????????+^ ^ | | ??????# #??????# "F" # #?""????????# " | | ??????# """"" ######## """ # #?"Y????????+ " | | ??????# "]]]" / + # #?""????????# " | | "?"""?# "]]]" ######## # #???????????# | | T?"""?# "]]]" #?????## # #?????#?????# | | "?"""?# "]]]"[##"####""##+##### ##### ####### " | | ??????# %]]]" [ "%" " | | ????### ]]] ! [ " " | | ????# " !%% ] = % | | ????# " ]]] %=[ | | ????### " * [[ ##/###########+#############+?###? | | ?????#" === # #????????? | | ?????#" =% # ! # #????????? | | ?????## ## # = #????????? | | ??????# #? # glg! #????????? | | ??????# #? """ # "gg " #????????? | | ""????#########??""" # "bbb" #????????? | | ?"???????????????""" # "@ " #????????? | | ""???????????????????# #????????? | | ?????????????????????####################????????? | | ""???????????????????????????????????????????????? | | ?"???????????????????????????????????????????????? | | ""???????????????????????????????????????????????? | | ?????????????????????????????????????????????????? | | """??????????????????????????????????????????????? | | ?????????????????????????????????????????????????? | | ?????????????????????????????????????????????????? | | ?????????????????????????????????????????????????? | | ?????????????????????????????????????????????????? | | ?????????????????????????????????????????????????? | | | | | | | | | | | | | | | | | | | | | | | | | +----------------------------------------------------+ Best States ------------- Heat Dissipation 163 Energy Generation 55 Energy Capacity 885 Matter Stores 300 Matter Capacity 300 Sight Range 20 Terrain Scan Density 10 Armor Coverage 1050 Resistance: TH 50 Weapon Shielding 66 Weapon Cycling 30 Phase Shifting 20 Evasion (%) 75 Core Analysis 8 Armor Integrity Analysis 40 Recoil Reduction 1 Energy Filtering 30 Item Schematics ----------------- Combat Drone Bay | -7/Data Miner | Free Lgt. Regenerative Plating | -7/Data Miner | Free Biomechanical Wings | -7/Data Miner | Free Gravity Neutralizer | -7/Data Miner | Free Cld. Plasma Cannon | -7/Data Miner | Free Antigrav System | -7/Data Miner | Free KE Penetrator | -7/Data Miner | Free Adv. Cooling System | -7/Data Miner | Free Imp. Remote Datajack | -7/Data Miner | Free Hvy. Disruptor Cannon | -7/Data Miner | Free Imp. Hacking Suite | -7/Data Miner | Free Robot Schematics ------------------ W-25 Informer | -7/Data Miner | Free B-48 Gladiator | -7/Data Miner | Free R-10 Processor | -7/Data Miner | Free H-66 Slayer | -7/Data Miner | Free A-15 Conveyor | -7/Data Miner | Free Fabricated ------------ Nothing Repaired ---------- Nothing Studied --------- Wheel | -7/Factory | Hacked Com. Wheel | -5/Factory | Hacked Alien Tech Used ----------------- None Achievements -------------- None Challenges ------------ None Game ------ Seed DrainedAerolevLegs Manual? 0 Play Time 01:27:58 Cumulative 365.1 hours Start 2025.11.04 @ 04:33:01 End 2025.11.04 @ 06:01:20 Sessions 1 Manual Loads 0 Difficulty Rogue Special Mode None Game No. 323 Rogue 323 Adventurer 0 Explorer 0 Win Type - Total 2 Types 1/1/0/0/0/0/0/0/0/0 Lore% 83 Gallery% 82 Achievement% 59 Wizard Run 0 Options --------- Layout 1 ASCII 0 Keyboard 0 Movement Numpad Keybinds 0 Fullscreen 1 Font 24/Smallcaps Map View 50x35 Zoom Use 0% Tactical HUD 1 Map Filters NONE Filters NONE Steam 1 RUN: 2ccc542b-7e57-4a7a-91ff-c78e92469fd9